[Event "Titled Tuesday Blitz November 29 Late 2022"]
[White "Sarana, Alexey"]
[Black "Redzisz, Michal"]
[WhiteFideId "24133795"]
[BlackFideId "21816107"]
[WhiteElo "3001"]
[BlackElo "2513"]
[Result "1-0"]
[Round "01"]
[TimeControl "180+1"]
[Date "2022.11.30"]
[WhiteClock "0:02:10"]
[BlackClock "0:00:04"]

1. d4 {[%clk 0:02:57]}  Nf6 {[%clk 0:02:58]} 2. c4 {[%clk 0:02:57]}  e6 {[%clk 0:02:48]} 3. Nc3 {[%clk 0:02:57]}  d5 {[%clk 0:02:48]} 4. cxd5 {[%clk 0:02:57]}  exd5 {[%clk 0:02:48]} 5. Bf4 {[%clk 0:02:57]}  c6 {[%clk 0:02:45]} 6. e3 {[%clk 0:02:57]}  Bd6 {[%clk 0:02:37]} 7. Bxd6 {[%clk 0:02:57]}  Qxd6 {[%clk 0:02:38]} 8. Bd3 {[%clk 0:02:57]}  O-O {[%clk 0:02:38]} 9. Nge2 {[%clk 0:02:58]}  Re8 {[%clk 0:02:33]} 10. Qd2 {[%clk 0:02:57]}  Nbd7 {[%clk 0:02:32]} 11. f3 {[%clk 0:02:57]}  c5 {[%clk 0:01:56]} 12. O-O {[%clk 0:02:57]}  a6 {[%clk 0:01:54]} 13. dxc5 {[%clk 0:02:55]}  Nxc5 {[%clk 0:01:55]} 14. Nd4 {[%clk 0:02:55]}  Nxd3 {[%clk 0:01:48]} 15. Qxd3 {[%clk 0:02:56]}  b5 {[%clk 0:01:30]} 16. Rfe1 {[%clk 0:02:53]}  Bb7 {[%clk 0:01:29]} 17. Rad1 {[%clk 0:02:53]}  Rac8 {[%clk 0:01:26]} 18. Nce2 {[%clk 0:02:53]}  Qe5 {[%clk 0:01:13]} 19. Ng3 {[%clk 0:02:48]}  g6 {[%clk 0:01:12]} 20. Nf1 {[%clk 0:02:42]}  Nd7 {[%clk 0:01:06]} 21. Nd2 {[%clk 0:02:42]}  Nc5 {[%clk 0:01:04]} 22. Qa3 {[%clk 0:02:42]}  Ne6 {[%clk 0:00:48]} 23. N2b3 {[%clk 0:02:41]}  h5 {[%clk 0:00:46]} 24. Nxe6 {[%clk 0:02:40]}  Rxe6 {[%clk 0:00:39]} 25. Nd4 {[%clk 0:02:40]}  Re7 {[%clk 0:00:37]} 26. Qd3 {[%clk 0:02:41]}  h4 {[%clk 0:00:34]} 27. Re2 {[%clk 0:02:40]}  h3 {[%clk 0:00:33]} 28. gxh3 {[%clk 0:02:39]}  Rec7 {[%clk 0:00:29]} 29. Rg2 {[%clk 0:02:34]}  Rc1 {[%clk 0:00:23]} 30. Rxc1 {[%clk 0:02:26]}  Rxc1+ {[%clk 0:00:23]} 31. Kf2 {[%clk 0:02:27]}  Bc8 {[%clk 0:00:18]} 32. f4 {[%clk 0:02:18]}  Qh5 {[%clk 0:00:16]} 33. f5 {[%clk 0:02:16]}  Qh4+ {[%clk 0:00:13]} 34. Rg3 {[%clk 0:02:16]}  Rh1 {[%clk 0:00:08]} 35. Kg2 {[%clk 0:02:14]}  Re1 {[%clk 0:00:04]} 36. fxg6 {[%clk 0:02:13]}  f5 {[%clk 0:00:04]} 37. Qc2 {[%clk 0:02:10]} 1-0


[Site "https://www.chess.com"]

[Event "Titled Tuesday Blitz November 29 Late 2022"]
[White "Sarkar, Justin"]
[Black "Urazayev, Arystanbek"]
[WhiteFideId "2010011"]
[BlackFideId "13709810"]
[WhiteElo "2239"]
[BlackElo "2441"]
[Result "0-1"]
[Round "01"]
[TimeControl "180+1"]
[Date "2022.11.30"]
[WhiteClock "0:00:01"]
[BlackClock "0:00:22"]

1. d4 {[%clk 0:02:56]}  Nf6 {[%clk 0:02:59]} 2. c4 {[%clk 0:02:55]}  g6 {[%clk 0:02:59]} 3. Nc3 {[%clk 0:02:54]}  Bg7 {[%clk 0:02:58]} 4. e4 {[%clk 0:02:52]}  d6 {[%clk 0:02:58]} 5. Bg5 {[%clk 0:02:49]}  h6 {[%clk 0:02:57]} 6. Be3 {[%clk 0:02:32]}  Ng4 {[%clk 0:02:55]} 7. Bc1 {[%clk 0:02:29]}  c5 {[%clk 0:02:55]} 8. d5 {[%clk 0:02:22]}  Bd4 {[%clk 0:02:36]} 9. Nh3 {[%clk 0:02:12]}  a6 {[%clk 0:02:37]} 10. Be2 {[%clk 0:02:07]}  h5 {[%clk 0:02:26]} 11. O-O {[%clk 0:01:45]}  Nd7 {[%clk 0:02:19]} 12. Ng5 {[%clk 0:01:36]}  Nde5 {[%clk 0:02:19]} 13. h3 {[%clk 0:01:26]}  f6 {[%clk 0:01:46]} 14. Ne6 {[%clk 0:01:20]}  Bxe6 {[%clk 0:01:44]} 15. dxe6 {[%clk 0:01:20]}  Bxc3 {[%clk 0:01:38]} 16. bxc3 {[%clk 0:01:18]}  Nh6 {[%clk 0:01:38]} 17. f4 {[%clk 0:01:14]}  Nc6 {[%clk 0:01:38]} 18. f5 {[%clk 0:01:13]}  Qa5 {[%clk 0:01:26]} 19. fxg6 {[%clk 0:01:08]}  O-O-O {[%clk 0:01:22]} 20. Bd2 {[%clk 0:00:44]}  Ne5 {[%clk 0:01:12]} 21. Qc1 {[%clk 0:00:38]}  Ng8 {[%clk 0:01:10]} 22. Rf5 {[%clk 0:00:29]}  h4 {[%clk 0:01:00]} 23. Rh5 {[%clk 0:00:23]}  Nxg6 {[%clk 0:00:58]} 24. Rxh8 {[%clk 0:00:20]}  Nxh8 {[%clk 0:00:59]} 25. Qe1 {[%clk 0:00:18]}  Ng6 {[%clk 0:00:59]} 26. Bh5 {[%clk 0:00:15]}  Ne5 {[%clk 0:00:59]} 27. Qxh4 {[%clk 0:00:13]}  Nxc4 {[%clk 0:00:59]} 28. Be1 {[%clk 0:00:13]}  Ne5 {[%clk 0:00:58]} 29. Bf7 {[%clk 0:00:12]}  Qa3 {[%clk 0:00:42]} 30. Qh7 {[%clk 0:00:07]}  Qb2 {[%clk 0:00:41]} 31. Rd1 {[%clk 0:00:06]}  Qe2 {[%clk 0:00:29]} 32. Ra1 {[%clk 0:00:05]}  Qe3+ {[%clk 0:00:24]} 33. Bf2 {[%clk 0:00:04]}  Qg5 {[%clk 0:00:24]} 34. Kh1 {[%clk 0:00:02]}  Nh6 {[%clk 0:00:23]} 35. h4 {[%clk 0:00:01]}  Qf4 {[%clk 0:00:22]} 0-1


[Site "https://www.chess.com"]

[Event "Titled Tuesday Blitz November 29 Late 2022"]
[White "Semianiuk, Konstantin"]
[Black "Milikow, Yoav"]
[WhiteFideId "2607603"]
[BlackFideId "2822237"]
[WhiteElo "2457"]
[BlackElo "2341"]
[Result "0-1"]
[Round "01"]
[TimeControl "180+1"]
[Date "2022.11.30"]
[WhiteClock "0:02:02"]
[BlackClock "0:02:03"]

1. d4 {[%clk 0:02:52]}  d5 {[%clk 0:02:58]} 2. Nf3 {[%clk 0:02:51]}  Nf6 {[%clk 0:02:56]} 3. Bf4 {[%clk 0:02:52]}  c5 {[%clk 0:02:56]} 4. e3 {[%clk 0:02:52]}  Nc6 {[%clk 0:02:56]} 5. c3 {[%clk 0:02:52]}  e6 {[%clk 0:02:56]} 6. Nbd2 {[%clk 0:02:52]}  cxd4 {[%clk 0:02:56]} 7. exd4 {[%clk 0:02:51]}  Nh5 {[%clk 0:02:56]} 8. Be3 {[%clk 0:02:51]}  Bd6 {[%clk 0:02:56]} 9. Bd3 {[%clk 0:02:48]}  Nf4 {[%clk 0:02:56]} 10. Bxf4 {[%clk 0:02:48]}  Bxf4 {[%clk 0:02:57]} 11. g3 {[%clk 0:02:49]}  Bd6 {[%clk 0:02:56]} 12. Qe2 {[%clk 0:02:49]}  Qc7 {[%clk 0:02:56]} 13. O-O {[%clk 0:02:49]}  O-O {[%clk 0:02:51]} 14. Rfe1 {[%clk 0:02:49]}  h6 {[%clk 0:02:50]} 15. Nh4 {[%clk 0:02:45]}  Be7 {[%clk 0:02:48]} 16. Qh5 {[%clk 0:02:43]}  Bf6 {[%clk 0:02:44]} 17. Ndf3 {[%clk 0:02:40]}  Rb8 {[%clk 0:02:36]} 18. Ne5 {[%clk 0:02:36]}  Nxe5 {[%clk 0:02:28]} 19. dxe5 {[%clk 0:02:35]}  Bd8 {[%clk 0:02:19]} 20. f4 {[%clk 0:02:25]}  Qb6+ {[%clk 0:02:17]} 21. Kh1 {[%clk 0:02:18]}  Qxb2 {[%clk 0:02:17]} 22. f5 {[%clk 0:02:16]}  Qxc3 {[%clk 0:02:12]} 23. Rad1 {[%clk 0:02:13]}  Bxh4 {[%clk 0:02:09]} 24. gxh4 {[%clk 0:02:10]}  exf5 {[%clk 0:02:07]} 25. Bxf5 {[%clk 0:02:05]}  Bxf5 {[%clk 0:02:05]} 26. Qxf5 {[%clk 0:02:05]}  Rbe8 {[%clk 0:02:04]} 27. Rxd5 {[%clk 0:02:02]}  Qxe1+ {[%clk 0:02:03]} 0-1


[Site "https://www.chess.com"]

[Event "Titled Tuesday Blitz November 29 Late 2022"]
[White "Sokolovsky, Yahli"]
[Black "Perez Torres, Nabi Isaias"]
[WhiteFideId "2820242"]
[BlackFideId "5120373"]
[WhiteElo "2316"]
[BlackElo "1915"]
[Result "1-0"]
[Round "01"]
[TimeControl "180+1"]
[Date "2022.11.30"]
[WhiteClock "0:00:51"]
[BlackClock "0:00:30"]

1. b3 {[%clk 0:02:59]}  Nf6 {[%clk 0:02:59]} 2. Bb2 {[%clk 0:02:58]}  e6 {[%clk 0:02:59]} 3. e3 {[%clk 0:02:59]}  d5 {[%clk 0:02:57]} 4. Nf3 {[%clk 0:02:58]}  c5 {[%clk 0:02:58]} 5. d4 {[%clk 0:02:58]}  Nc6 {[%clk 0:02:57]} 6. Bb5 {[%clk 0:02:56]}  Be7 {[%clk 0:02:56]} 7. O-O {[%clk 0:02:49]}  O-O {[%clk 0:02:55]} 8. Bxc6 {[%clk 0:02:49]}  bxc6 {[%clk 0:02:55]} 9. Ne5 {[%clk 0:02:50]}  Qc7 {[%clk 0:02:49]} 10. Nd2 {[%clk 0:02:50]}  a5 {[%clk 0:02:39]} 11. a4 {[%clk 0:02:35]}  Rb8 {[%clk 0:02:34]} 12. Rb1 {[%clk 0:02:18]}  cxd4 {[%clk 0:02:30]} 13. exd4 {[%clk 0:02:18]}  c5 {[%clk 0:02:31]} 14. Re1 {[%clk 0:02:12]}  Ba6 {[%clk 0:02:22]} 15. Re3 {[%clk 0:01:55]}  Rfc8 {[%clk 0:02:19]} 16. dxc5 {[%clk 0:01:49]}  Bxc5 {[%clk 0:02:11]} 17. Rg3 {[%clk 0:01:47]}  Bd6 {[%clk 0:02:00]} 18. Rc3 {[%clk 0:01:19]}  Qb6 {[%clk 0:01:46]} 19. Rf3 {[%clk 0:01:19]}  Rc7 {[%clk 0:01:28]} 20. Rxf6 {[%clk 0:01:09]}  gxf6 {[%clk 0:01:28]} 21. Ng4 {[%clk 0:00:59]}  d4 {[%clk 0:01:03]} 22. Nxf6+ {[%clk 0:00:59]}  Kf8 {[%clk 0:00:46]} 23. Nde4 {[%clk 0:00:59]}  Be5 {[%clk 0:00:40]} 24. Ba3+ {[%clk 0:00:50]}  Kg7 {[%clk 0:00:31]} 25. Qg4+ {[%clk 0:00:50]}  Kh8 {[%clk 0:00:30]} 26. Qh5 {[%clk 0:00:51]} 1-0


[Site "https://www.chess.com"]

[Event "Titled Tuesday Blitz November 29 Late 2022"]
[White "Storey, Charles H"]
[Black "Djordjevic, Vuk"]
[WhiteFideId "406686"]
[BlackFideId "902098"]
[WhiteElo "2252"]
[BlackElo "2456"]
[Result "0-1"]
[Round "01"]
[TimeControl "180+1"]
[Date "2022.11.30"]
[WhiteClock "0:00:16"]
[BlackClock "0:01:47"]

1. c4 {[%clk 0:01:39]}  e5 {[%clk 0:02:47]} 2. g3 {[%clk 0:01:39]}  Nc6 {[%clk 0:02:48]} 3. Bg2 {[%clk 0:01:39]}  d6 {[%clk 0:02:49]} 4. Nc3 {[%clk 0:01:39]}  Be6 {[%clk 0:02:49]} 5. d3 {[%clk 0:01:38]}  Qd7 {[%clk 0:02:50]} 6. h3 {[%clk 0:01:37]}  g6 {[%clk 0:02:50]} 7. Nf3 {[%clk 0:01:37]}  h6 {[%clk 0:02:51]} 8. Bd2 {[%clk 0:01:36]}  Bg7 {[%clk 0:02:51]} 9. Nd5 {[%clk 0:01:36]}  Nd8 {[%clk 0:02:51]} 10. e4 {[%clk 0:01:32]}  c6 {[%clk 0:02:51]} 11. Ne3 {[%clk 0:01:32]}  Ne7 {[%clk 0:02:49]} 12. Bc3 {[%clk 0:01:31]}  O-O {[%clk 0:02:42]} 13. d4 {[%clk 0:01:28]}  f5 {[%clk 0:02:29]} 14. dxe5 {[%clk 0:01:24]}  fxe4 {[%clk 0:02:28]} 15. Nd2 {[%clk 0:01:09]}  d5 {[%clk 0:02:14]} 16. cxd5 {[%clk 0:01:05]}  cxd5 {[%clk 0:02:12]} 17. Nb3 {[%clk 0:00:57]}  Ndc6 {[%clk 0:02:08]} 18. Nc5 {[%clk 0:00:52]}  Qc8 {[%clk 0:02:08]} 19. Qb3 {[%clk 0:00:44]}  Nxe5 {[%clk 0:01:55]} 20. Bxe5 {[%clk 0:00:36]}  Bxe5 {[%clk 0:01:55]} 21. Nxe6 {[%clk 0:00:32]}  Qxe6 {[%clk 0:01:56]} 22. Bxe4 {[%clk 0:00:30]}  Bxg3 {[%clk 0:01:55]} 23. Bxd5 {[%clk 0:00:25]}  Nxd5 {[%clk 0:01:46]} 24. Qxd5 {[%clk 0:00:24]}  Bxf2+ {[%clk 0:01:47]} 25. Ke2 {[%clk 0:00:16]}  Rae8 {[%clk 0:01:47]} 0-1


[Site "https://www.chess.com"]

[Event "Titled Tuesday Blitz November 29 Late 2022"]
[White "Tirelli, Mauro"]
[Black "Aldokhin, Ivan"]
[WhiteFideId "845353"]
[BlackFideId "24115720"]
[WhiteElo "2166"]
[BlackElo "2313"]
[Result "0-1"]
[Round "01"]
[TimeControl "180+1"]
[Date "2022.11.30"]
[WhiteClock "0:00:01"]
[BlackClock "0:00:11"]

1. d4 {[%clk 0:02:51]}  Nf6 {[%clk 0:02:59]} 2. c4 {[%clk 0:02:50]}  g6 {[%clk 0:02:59]} 3. Nf3 {[%clk 0:02:47]}  Bg7 {[%clk 0:03:00]} 4. g3 {[%clk 0:02:47]}  d6 {[%clk 0:03:00]} 5. Bg2 {[%clk 0:02:47]}  O-O {[%clk 0:03:01]} 6. O-O {[%clk 0:02:47]}  Nc6 {[%clk 0:03:02]} 7. Nc3 {[%clk 0:02:46]}  Bf5 {[%clk 0:03:02]} 8. Nh4 {[%clk 0:02:41]}  Bd7 {[%clk 0:03:01]} 9. e4 {[%clk 0:02:32]}  e5 {[%clk 0:02:53]} 10. d5 {[%clk 0:02:27]}  Nd4 {[%clk 0:02:53]} 11. Be3 {[%clk 0:02:26]}  Re8 {[%clk 0:02:30]} 12. h3 {[%clk 0:02:16]}  Qc8 {[%clk 0:02:17]} 13. Kh2 {[%clk 0:02:13]}  c5 {[%clk 0:02:16]} 14. dxc6 {[%clk 0:01:54]}  bxc6 {[%clk 0:02:08]} 15. Nf3 {[%clk 0:01:45]}  c5 {[%clk 0:01:53]} 16. Bg5 {[%clk 0:01:44]}  Be6 {[%clk 0:01:38]} 17. b3 {[%clk 0:01:29]}  a5 {[%clk 0:01:36]} 18. Bxf6 {[%clk 0:01:25]}  Bxf6 {[%clk 0:01:35]} 19. Nd5 {[%clk 0:01:23]}  Bxd5 {[%clk 0:01:35]} 20. cxd5 {[%clk 0:01:21]}  Qa6 {[%clk 0:01:25]} 21. Re1 {[%clk 0:01:05]}  a4 {[%clk 0:01:20]} 22. bxa4 {[%clk 0:00:53]}  Qxa4 {[%clk 0:01:19]} 23. Qxa4 {[%clk 0:00:51]}  Rxa4 {[%clk 0:01:20]} 24. Nxd4 {[%clk 0:00:47]}  exd4 {[%clk 0:01:20]} 25. a3 {[%clk 0:00:35]}  d3 {[%clk 0:01:10]} 26. Ra2 {[%clk 0:00:35]}  c4 {[%clk 0:01:07]} 27. Rd1 {[%clk 0:00:26]}  Bd4 {[%clk 0:01:04]} 28. f4 {[%clk 0:00:24]}  Rb8 {[%clk 0:00:54]} 29. g4 {[%clk 0:00:19]}  Rb2 {[%clk 0:00:42]} 30. Rxb2 {[%clk 0:00:16]}  Bxb2 {[%clk 0:00:43]} 31. e5 {[%clk 0:00:15]}  c3 {[%clk 0:00:33]} 32. exd6 {[%clk 0:00:08]}  c2 {[%clk 0:00:33]} 33. d7 {[%clk 0:00:08]}  Ra8 {[%clk 0:00:32]} 34. Re1 {[%clk 0:00:07]}  Kf8 {[%clk 0:00:23]} 35. d6 {[%clk 0:00:05]}  Rd8 {[%clk 0:00:23]} 36. Bc6 {[%clk 0:00:02]}  c1=Q {[%clk 0:00:23]} 37. Re8+ {[%clk 0:00:02]}  Kg7 {[%clk 0:00:23]} 38. Rxd8 {[%clk 0:00:02]}  Qxf4+ {[%clk 0:00:13]} 39. Kg2 {[%clk 0:00:01]}  Qd2+ {[%clk 0:00:11]} 0-1


[Site "https://www.chess.com"]

[Event "Titled Tuesday Blitz November 29 Late 2022"]
[White "Travadon, Loic"]
[Black "Abasov, Nijat"]
[WhiteFideId "26092131"]
[BlackFideId "13402960"]
[WhiteElo "2511"]
[BlackElo "2975"]
[Result "0-1"]
[Round "01"]
[TimeControl "180+1"]
[Date "2022.11.30"]
[WhiteClock "0:01:21"]
[BlackClock "0:00:34"]

1. e4 {[%clk 0:03:00]}  c5 {[%clk 0:02:59]} 2. Nc3 {[%clk 0:02:57]}  e6 {[%clk 0:02:59]} 3. Nge2 {[%clk 0:02:57]}  Nc6 {[%clk 0:02:59]} 4. d4 {[%clk 0:02:53]}  cxd4 {[%clk 0:03:00]} 5. Nxd4 {[%clk 0:02:53]}  Nf6 {[%clk 0:03:00]} 6. a3 {[%clk 0:02:50]}  Be7 {[%clk 0:03:00]} 7. Nxc6 {[%clk 0:02:49]}  bxc6 {[%clk 0:03:01]} 8. e5 {[%clk 0:02:49]}  Nd5 {[%clk 0:03:00]} 9. Ne4 {[%clk 0:02:50]}  Qa5+ {[%clk 0:02:42]} 10. Bd2 {[%clk 0:02:48]}  Qc7 {[%clk 0:02:40]} 11. f4 {[%clk 0:02:45]}  Qb6 {[%clk 0:02:36]} 12. Bd3 {[%clk 0:02:32]}  f5 {[%clk 0:02:32]} 13. exf6 {[%clk 0:02:31]}  Nxf6 {[%clk 0:02:33]} 14. Qe2 {[%clk 0:02:21]}  Qxb2 {[%clk 0:02:25]} 15. O-O {[%clk 0:02:18]}  O-O {[%clk 0:02:17]} 16. Kh1 {[%clk 0:02:15]}  Nxe4 {[%clk 0:01:41]} 17. Qxe4 {[%clk 0:02:14]}  g6 {[%clk 0:01:41]} 18. Rab1 {[%clk 0:02:05]}  Qxa3 {[%clk 0:01:33]} 19. h4 {[%clk 0:02:01]}  d5 {[%clk 0:01:16]} 20. Qf3 {[%clk 0:01:58]}  e5 {[%clk 0:01:13]} 21. Rb3 {[%clk 0:01:53]}  e4 {[%clk 0:01:02]} 22. Qg3 {[%clk 0:01:46]}  Qd6 {[%clk 0:01:02]} 23. Be2 {[%clk 0:01:43]}  Qf6 {[%clk 0:00:56]} 24. Be1 {[%clk 0:01:40]}  Bd6 {[%clk 0:00:48]} 25. Qh2 {[%clk 0:01:36]}  d4 {[%clk 0:00:45]} 26. h5 {[%clk 0:01:31]}  Be6 {[%clk 0:00:40]} 27. hxg6 {[%clk 0:01:31]}  hxg6 {[%clk 0:00:41]} 28. Rg3 {[%clk 0:01:31]}  Kg7 {[%clk 0:00:40]} 29. Kg1 {[%clk 0:01:25]}  Rh8 {[%clk 0:00:40]} 30. Rh3 {[%clk 0:01:24]}  Bxh3 {[%clk 0:00:39]} 31. gxh3 {[%clk 0:01:25]}  Raf8 {[%clk 0:00:37]} 32. Bg4 {[%clk 0:01:22]}  Bxf4 {[%clk 0:00:35]} 33. Qg2 {[%clk 0:01:22]}  Be3+ {[%clk 0:00:35]} 34. Kh2 {[%clk 0:01:21]}  Qxf1 {[%clk 0:00:34]} 35. Qxe4 {[%clk 0:01:22]}  Qf4+ {[%clk 0:00:34]} 36. Kg2 {[%clk 0:01:20]}  Qxe4+ {[%clk 0:00:34]} 37. Bf3 {[%clk 0:01:21]}  Qxf3+ {[%clk 0:00:34]} 38. Kh2 {[%clk 0:01:21]}  Qxh3# {[%clk 0:00:34]} 0-1


[Site "https://www.chess.com"]

[Event "Titled Tuesday Blitz November 29 Late 2022"]
[White "Van Foreest, Jorden"]
[Black "Sztokbant, Bernardo Vainzoff"]
[WhiteFideId "1039784"]
[BlackFideId "2115956"]
[WhiteElo "2974"]
[BlackElo "2509"]
[Result "1-0"]
[Round "01"]
[TimeControl "180+1"]
[Date "2022.11.30"]
[WhiteClock "0:01:55"]
[BlackClock "0:01:43"]

1. d4 {[%clk 0:02:55]}  d5 {[%clk 0:02:58]} 2. c4 {[%clk 0:02:55]}  dxc4 {[%clk 0:02:55]} 3. e3 {[%clk 0:02:55]}  Nf6 {[%clk 0:02:54]} 4. Bxc4 {[%clk 0:02:55]}  e6 {[%clk 0:02:55]} 5. Nf3 {[%clk 0:02:54]}  a6 {[%clk 0:02:55]} 6. O-O {[%clk 0:02:54]}  b5 {[%clk 0:02:55]} 7. Be2 {[%clk 0:02:54]}  Bb7 {[%clk 0:02:56]} 8. a4 {[%clk 0:02:54]}  b4 {[%clk 0:02:55]} 9. Nbd2 {[%clk 0:02:55]}  Be7 {[%clk 0:02:55]} 10. b3 {[%clk 0:02:54]}  O-O {[%clk 0:02:56]} 11. Bb2 {[%clk 0:02:54]}  Nbd7 {[%clk 0:02:56]} 12. Nc4 {[%clk 0:02:54]}  c5 {[%clk 0:02:55]} 13. Rc1 {[%clk 0:02:54]}  Ne4 {[%clk 0:02:48]} 14. Rc2 {[%clk 0:02:48]}  Rc8 {[%clk 0:02:46]} 15. Qa1 {[%clk 0:02:49]}  Bf6 {[%clk 0:02:36]} 16. Rfc1 {[%clk 0:02:48]}  Bd5 {[%clk 0:02:30]} 17. Ncd2 {[%clk 0:02:46]}  Qe7 {[%clk 0:02:17]} 18. Bxa6 {[%clk 0:02:44]}  Ra8 {[%clk 0:02:16]} 19. Bb5 {[%clk 0:02:43]}  Nxd2 {[%clk 0:02:15]} 20. Nxd2 {[%clk 0:02:44]}  Rfd8 {[%clk 0:02:10]} 21. dxc5 {[%clk 0:02:42]}  Bxb2 {[%clk 0:02:11]} 22. Qxb2 {[%clk 0:02:42]}  Qg5 {[%clk 0:02:09]} 23. e4 {[%clk 0:02:41]}  Ne5 {[%clk 0:01:59]} 24. exd5 {[%clk 0:02:39]}  Rxd5 {[%clk 0:02:00]} 25. Kh1 {[%clk 0:02:23]}  Qh4 {[%clk 0:01:58]} 26. c6 {[%clk 0:02:11]}  Qh5 {[%clk 0:01:51]} 27. c7 {[%clk 0:02:10]}  Rc8 {[%clk 0:01:50]} 28. Ba6 {[%clk 0:02:09]}  Ng4 {[%clk 0:01:50]} 29. Nf3 {[%clk 0:02:07]}  Rf5 {[%clk 0:01:50]} 30. Rd2 {[%clk 0:01:57]}  h6 {[%clk 0:01:48]} 31. Rd8+ {[%clk 0:01:55]}  Kh7 {[%clk 0:01:49]} 32. Bd3 {[%clk 0:01:55]}  Nxf2+ {[%clk 0:01:43]} 33. Qxf2 {[%clk 0:01:55]} 1-0


[Site "https://www.chess.com"]

[Event "Titled Tuesday Blitz November 29 Late 2022"]
[White "Yanchenko, Roman"]
[Black "Pruess, David"]
[WhiteFideId "4137329"]
[BlackFideId "2014254"]
[WhiteElo "2489"]
[BlackElo "2449"]
[Result "1-0"]
[Round "01"]
[TimeControl "180+1"]
[Date "2022.11.30"]
[WhiteClock "0:00:39"]
[BlackClock "0:00:06"]

1. d4 {[%clk 0:02:57]}  Nf6 {[%clk 0:02:58]} 2. c4 {[%clk 0:02:58]}  e6 {[%clk 0:02:58]} 3. Nf3 {[%clk 0:02:58]}  c5 {[%clk 0:02:57]} 4. Nc3 {[%clk 0:02:57]}  cxd4 {[%clk 0:02:55]} 5. Nxd4 {[%clk 0:02:58]}  Nc6 {[%clk 0:02:52]} 6. e3 {[%clk 0:02:56]}  d5 {[%clk 0:02:51]} 7. cxd5 {[%clk 0:02:56]}  Nxd5 {[%clk 0:02:37]} 8. Nxc6 {[%clk 0:02:55]}  bxc6 {[%clk 0:02:37]} 9. Bd2 {[%clk 0:02:56]}  Be7 {[%clk 0:02:23]} 10. Be2 {[%clk 0:02:54]}  O-O {[%clk 0:02:23]} 11. O-O {[%clk 0:02:54]}  Bf6 {[%clk 0:02:23]} 12. Qc1 {[%clk 0:02:53]}  Rb8 {[%clk 0:02:21]} 13. Rd1 {[%clk 0:02:53]}  Qb6 {[%clk 0:02:12]} 14. Rb1 {[%clk 0:02:42]}  Rd8 {[%clk 0:01:47]} 15. Na4 {[%clk 0:02:41]}  Qc7 {[%clk 0:01:47]} 16. Qc5 {[%clk 0:02:37]}  Be7 {[%clk 0:01:32]} 17. Ba5 {[%clk 0:02:36]}  Nb6 {[%clk 0:01:18]} 18. Rxd8+ {[%clk 0:02:24]}  Qxd8 {[%clk 0:01:18]} 19. Qxc6 {[%clk 0:02:17]}  Bd7 {[%clk 0:01:15]} 20. Bxb6 {[%clk 0:02:10]}  Rxb6 {[%clk 0:00:52]} 21. Qc2 {[%clk 0:02:04]}  Bxa4 {[%clk 0:00:51]} 22. Qxa4 {[%clk 0:02:04]}  Qd2 {[%clk 0:00:51]} 23. Qxa7 {[%clk 0:01:47]}  Bc5 {[%clk 0:00:24]} 24. Qc7 {[%clk 0:00:41]}  Qd5 {[%clk 0:00:06]} 25. Rd1 {[%clk 0:00:39]} 1-0


[Site "https://www.chess.com"]

[Event "Titled Tuesday Blitz November 29 Late 2022"]
[White "Yeritsyan, Hayk"]
[Black "Hardaway, Brewington"]
[WhiteFideId "13307320"]
[BlackFideId "30941849"]
[WhiteElo "2403"]
[BlackElo "2159"]
[Result "1-0"]
[Round "01"]
[TimeControl "180+1"]
[Date "2022.11.30"]
[WhiteClock "0:00:20"]
[BlackClock "0:00:03"]

1. d4 {[%clk 0:02:56]}  Nf6 {[%clk 0:02:59]} 2. Nf3 {[%clk 0:02:55]}  e6 {[%clk 0:02:59]} 3. e3 {[%clk 0:02:55]}  b6 {[%clk 0:02:59]} 4. Bd3 {[%clk 0:02:55]}  Bb7 {[%clk 0:03:00]} 5. Nbd2 {[%clk 0:02:54]}  c5 {[%clk 0:03:00]} 6. c3 {[%clk 0:02:54]}  Nc6 {[%clk 0:03:01]} 7. Qe2 {[%clk 0:02:54]}  Rc8 {[%clk 0:02:59]} 8. O-O {[%clk 0:02:54]}  cxd4 {[%clk 0:02:57]} 9. exd4 {[%clk 0:02:54]}  d5 {[%clk 0:02:57]} 10. Re1 {[%clk 0:02:52]}  Bd6 {[%clk 0:02:56]} 11. Ne5 {[%clk 0:02:52]}  O-O {[%clk 0:02:56]} 12. f4 {[%clk 0:02:51]}  Ne7 {[%clk 0:02:36]} 13. Qf3 {[%clk 0:02:37]}  Ng6 {[%clk 0:02:16]} 14. g4 {[%clk 0:02:34]}  a6 {[%clk 0:02:07]} 15. g5 {[%clk 0:02:29]}  Nd7 {[%clk 0:02:04]} 16. Qg4 {[%clk 0:02:24]}  Re8 {[%clk 0:01:47]} 17. h4 {[%clk 0:02:13]}  Bf8 {[%clk 0:01:06]} 18. h5 {[%clk 0:02:11]}  Ngxe5 {[%clk 0:01:06]} 19. fxe5 {[%clk 0:02:11]}  g6 {[%clk 0:00:42]} 20. Nf3 {[%clk 0:02:03]}  Bg7 {[%clk 0:00:42]} 21. Nh4 {[%clk 0:02:03]}  Nf8 {[%clk 0:00:42]} 22. Rf1 {[%clk 0:02:02]}  Qe7 {[%clk 0:00:41]} 23. Rf6 {[%clk 0:02:00]}  b5 {[%clk 0:00:39]} 24. a3 {[%clk 0:01:55]}  Bc6 {[%clk 0:00:37]} 25. Bd2 {[%clk 0:01:51]}  Red8 {[%clk 0:00:30]} 26. Raf1 {[%clk 0:01:49]}  Be8 {[%clk 0:00:30]} 27. hxg6 {[%clk 0:01:39]}  fxg6 {[%clk 0:00:28]} 28. R1f2 {[%clk 0:01:29]}  Rc6 {[%clk 0:00:26]} 29. Rh2 {[%clk 0:01:18]}  Bxf6 {[%clk 0:00:23]} 30. gxf6 {[%clk 0:01:18]}  Qf7 {[%clk 0:00:21]} 31. Nf3 {[%clk 0:01:03]}  h5 {[%clk 0:00:20]} 32. Rxh5 {[%clk 0:01:01]}  Rc7 {[%clk 0:00:17]} 33. Nh4 {[%clk 0:00:53]}  Rdd7 {[%clk 0:00:11]} 34. Nxg6 {[%clk 0:00:44]}  Qxg6 {[%clk 0:00:06]} 35. Bxg6 {[%clk 0:00:40]}  Bxg6 {[%clk 0:00:06]} 36. Bh6 {[%clk 0:00:37]}  Kf7 {[%clk 0:00:03]} 37. Rg5 {[%clk 0:00:34]}  Bf5 {[%clk 0:00:02]} 38. Rg7+ {[%clk 0:00:28]}  Ke8 {[%clk 0:00:02]} 39. Qh5+ {[%clk 0:00:28]}  Rf7 {[%clk 0:00:03]} 40. Rg8 {[%clk 0:00:24]}  Kd7 {[%clk 0:00:01]} 41. Rxf8 {[%clk 0:00:22]}  Kc6 {[%clk 0:00:02]} 42. Rxf7 {[%clk 0:00:22]}  Rc8 {[%clk 0:00:02]} 43. Qg5 {[%clk 0:00:20]}  Be4 {[%clk 0:00:01]} 44. Qg7 {[%clk 0:00:20]}  Kb6 {[%clk 0:00:02]} 45. Rb7+ {[%clk 0:00:20]}  Ka5 {[%clk 0:00:02]} 46. Rc7 {[%clk 0:00:20]}  Rb8 {[%clk 0:00:02]} 47. Rb7 {[%clk 0:00:20]}  Rc8 {[%clk 0:00:03]} 48. Qe7 {[%clk 0:00:20]}  Ka4 {[%clk 0:00:03]} 49. Qb4# {[%clk 0:00:20]} 1-0


[Site "https://www.chess.com"]